Cogmind - Beta 15 @@@ ROGUE MODE // 2025.05.29 @ 17:39:58 Player: G4-R3D Result: Destroyed by B-86 Titan with Hardcell Cannon Performance ------------- Evolutions (7) 3500 Regions Visited (26) 5200 Robots Destroyed (199) 995 Value Destroyed (8200) 8200 Prototype IDs (46) 920 Alien Tech Used (0) 0 Bonus (6635) 6635 TOTAL SCORE: 25450 Bonus ------- High Alert Combat Kills 337 Follower Combat Kills 2698 Entered Garrisons 800 Used RIF Installer 1500 Network Hubs Disabled 200 Built Enhanced Grunts 300 A7 Reached Mainframe 300 Hacked Protovariant 500 Cogmind --------- Core Integrity 0/1300 Matter 163/300 Energy 83/100 System Corruption 12% Temperature Cool (42) Movement Core (50) Location -3/Garrison Parts ------- > --- POWER (1) -------- (None) > --- PROPULSION (6) --- (None) > --- UTILITY (12) ----- Advanced Targeting Computer Experimental Hacking Suite Improved System Shield > --- WEAPON (2) ------- (None) > --- INVENTORY (5) ---- Compact Particle Reactor Improved System Shield Advanced Variable Charge Gun EMDS Peak State ------------ > --- POWER ------------ Light Antimatter Reactor > --- PROPULSION ------- Improved Antigrav System Improved Antigrav System Improved Antigrav System Improved Gyrokinetic Inverter Antigrav Array > --- UTILITY ---------- Experimental Power Amplifier Large Storage Unit Advanced Targeting Computer Improved Utility Shielding Centrium Medium Armor Plating Improved Hacking Suite Improved Hacking Suite Advanced Hacking Suite Advanced Hacking Suite Experimental Hacking Suite Improved System Shield Relay Coupler [Hunter] > --- WEAPON ----------- Light Antimatter Cannon Powered Hammer > --- INVENTORY -------- Light Antimatter Reactor Compact Particle Reactor Improved Antigrav System Improved Antigrav System Improved System Shield Relay Coupler [Sentry] Advanced Variable Charge Gun EMDS Enhanced Gauss Cannon Linear Accelerator Micro-nuke Launcher Improved Remote Datajack Dual-blade Saw Portable AFG [Rating: 139] Favorites ----------- Power Light Nuclear Core Engine Improved Deuterium Engine Power Core Light Nuclear Core Reactor Compact Particle Reactor Propulsion Gravmag Array Treads Light Treads Leg Aluminum Leg Hover Unit Gravmag Array Flight Unit Flight Unit Utility Hacking Suite Device ECM Suite Storage Large Storage Unit Processor Advanced Targeting Computer Hackware Hacking Suite Protection Improved Utility Shielding Weapon Katana Energy Gun Medium Laser Energy Cannon EMDS Ballistic Gun Advanced KE Penetrator Ballistic Cannon Mini Assault Cannon Launcher Long-range Missile Launcher Special Weapon Remote Datajack Impact Weapon Hammer Slashing Weapon Katana Special Melee Weapon Improved Datajack Build | -11 -10 -10 -9 -9 -9 -9 -7 -7 -7 -7 -6 -6 -6 -6 -6 -5 -5 -5 -5 -4 -4 -4 -4 -3 -3 -3 ------- Run | Yrd Mat Min Mat Sto Gar Rec Fac Gar Fac Gar Fac Ext Cet Arc Hub Fac Upp Upp War Pro Fac Upp Upp Res Tes Gar Slots Evolved 14 | . . . 2 . . . 4 . . . 2 . . . . 2 . . . . 2 . . 2 . . Power . | . . . . . . . . . . . . . . . . . . . . . . . . . . . Propulsion 4 | . . . . . . . 2 . . . . . . . . 1 . . . . 1 . . . . . Utility 10 | . . . 2 . . . 2 . . . 2 . . . . 1 . . . . 1 . . 2 . . Weapon . | . . . . . . . . . . . . . . . . . . . . . . . . . . . Parts Attached 204 | 7 16 1 21 2 1 3 20 2 9 6 34 3 4 4 2 13 2 . . 1 26 . . 12 9 6 Power 25 | 1 2 . 3 . . . 2 . 1 . 4 . . . . 4 . . . . 5 . . 1 . 2 Engine 11 | 1 2 . 3 . . . 2 . 1 . 1 . . . . 1 . . . . . . . . . . Core 7 | . . . . . . . . . . . 3 . . . . 1 . . . . 3 . . . . . Reactor 7 | . . . . . . . . . . . . . . . . 2 . . . . 2 . . 1 . 2 Propulsion 68 | 2 4 . 8 1 1 . 7 . 3 2 13 . 1 . 1 4 1 . . 1 9 . . 3 5 2 Treads 2 | 2 . . . . . . . . . . . . . . . . . . . . . . . . . . Leg 2 | . . . 2 . . . . . . . . . . . . . . . . . . . . . . . Wheel . | . . . . . . . . . . . . . . . . . . . . . . . . . . . Hover 57 | . 2 . 6 1 1 . 6 . 3 2 10 . 1 . 1 4 1 . . 1 9 . . 3 5 1 Flight 7 | . 2 . . . . . 1 . . . 3 . . . . . . . . . . . . . . 1 Utility 66 | 2 4 1 5 1 . 3 6 2 2 4 13 2 1 3 . 3 1 . . . 6 . . 5 1 1 Device 19 | 1 . 1 4 1 . 1 1 . . . 3 1 . . . . . . . . 3 . . 3 . . Storage 5 | 1 3 . . . . . . . . . 1 . . . . . . . . . . . . . . . Processor 3 | . 1 . . . . . 1 . . . 1 . . . . . . . . . . . . . . . Hackware 21 | . . . 1 . . 1 2 2 1 2 1 1 . 3 . 2 . . . . 3 . . . 1 1 Protection 18 | . . . . . . 1 2 . 1 2 7 . 1 . . 1 1 . . . . . . 2 . . Artifact . | . . . . . . . . . . . . . . . . . . . . . . . . . . . Weapon 45 | 2 6 . 5 . . . 5 . 3 . 4 1 2 1 1 2 . . . . 6 . . 3 3 1 Energy Gun 8 | 2 2 . 1 . . . . . . . . . 1 . . . . . . . 2 . . . . . Energy Cannon 2 | . . . . . . . . . . . . . . . 1 . . . . . . . . . 1 . Ballistic Gun 11 | . 2 . 3 . . . 1 . . . 1 1 1 1 . . . . . . 1 . . . . . Ballistic Cannon 9 | . . . . . . . 2 . 1 . . . . . . 2 . . . . 1 . . 2 1 . Launcher 4 | . . . . . . . 1 . . . 1 . . . . . . . . . 1 . . . 1 . Special Weapon 4 | . . . . . . . . . 1 . 1 . . . . . . . . . . . . 1 . 1 Impact Weapon 3 | . 2 . . . . . . . . . . . . . . . . . . . 1 . . . . . Slashing Weapon 2 | . . . . . . . . . 1 . 1 . . . . . . . . . . . . . . . Piercing Weapon . | . . . . . . . . . . . . . . . . . . . . . . . . . . . Special Melee Weapon 2 | . . . 1 . . . 1 . . . . . . . . . . . . . . . . . . . Unidentified Prototypes 18 | . . . 2 . . . 2 . . . . . 3 . 1 1 . . . . 3 . . 2 4 . Corrupted Parts 1 | . . . . . . 1 . . . . . . . . . . . . . . . . . . . . System Corruption 3 | . . . . . . 3 . . . . . . . . . . . . . . . . . . . . Parts Lost 79 | . 7 . 3 4 1 . 1 1 1 10 6 1 . . . 4 4 . . 1 10 1 . 2 . 22 Power 10 | . 1 . . 1 . . . . . 2 1 . . . . 1 1 . . . . . . . . 3 Propulsion 34 | . 4 . 1 2 . . 1 1 1 5 2 . . . . 2 1 . . 1 3 1 . 2 . 7 Utility 20 | . . . 2 . 1 . . . . 1 3 1 . . . 1 1 . . . 2 . . . . 8 Weapon 15 | . 2 . . 1 . . . . . 2 . . . . . . 1 . . . 5 . . . . 4 Highest Loss Streak 21 | . 5 . 2 4 1 . 1 1 1 8 2 1 . . . 3 2 . . 1 5 1 . 1 . 21 To Critical Strikes 3 | . 1 . . . . . . . . . . . . . . . . . . . 1 . . . . 1 Average Backups 9 | . 2 5 4 4 3 3 4 5 5 5 9 13 13 13 14 12 11 10 10 9 11 13 13 13 12 12 Power 1 | . . 1 . . . . . 1 . . . 1 1 1 1 1 1 . . . 2 4 4 3 2 1 Propulsion 1 | . . . 1 1 . . . . . 1 3 4 3 3 3 2 1 1 1 . 1 . . . 1 1 Utility 1 | . 1 . . . 1 1 1 . . 1 2 3 4 4 4 2 2 2 2 2 1 2 2 3 2 2 Weapon 3 | . . 3 3 2 2 2 2 3 2 2 2 3 3 3 4 5 6 6 6 6 4 5 5 5 5 5 Tool/Special . | . . . . . . . . . . . . . . . . . . . . . . . . . . . Unused Backups 14 | . . . 1 . . . . . . . 1 . . 2 . 2 . . . . 2 . . . 2 4 Power 3 | . . . . . . . . . . . . . . . . . . . . . 1 . . . 1 1 Propulsion 3 | . . . . . . . . . . . 1 . . . . . . . . . 1 . . . 1 . Utility 4 | . . . . . . . . . . . . . . 1 . 1 . . . . . . . . . 2 Weapon 2 | . . . 1 . . . . . . . . . . . . . . . . . . . . . . 1 Tool/Special 2 | . . . . . . . . . . . . . . 1 . 1 . . . . . . . . . . Average Slot Usage (%) 89 | . 84 99 89 92 64 69 92 93 88 88 87 90 93 93 92 93 86 82 82 82 88 92 94 90 92 86 Engine 2 | . 11 14 11 9 . . 6 7 7 5 . . . . . 2 4 . . . . . . . . . Core 1 | . . . . . . . . . . . 5 5 6 6 6 2 . . . . . . . . . . Reactor 1 | . . . . . . . . . . . . . . . . . . 5 5 5 5 5 5 4 4 3 Hover 20 | . 3 28 16 20 22 22 27 26 19 23 15 19 20 20 20 22 22 23 23 23 25 24 26 25 23 19 Device 7 | . 11 13 21 18 11 20 8 7 7 1 2 10 6 6 6 5 5 5 5 5 4 5 5 8 9 6 Storage 3 | . 7 . . . . . . . . . 3 6 6 6 6 5 5 5 5 5 5 5 5 4 4 4 Processor 4 | . 2 14 11 11 9 . 4 . . . 5 6 6 6 6 5 5 5 5 5 5 5 5 4 4 4 Hackware 21 | . . . 1 11 11 12 18 26 30 36 27 21 26 26 26 24 19 17 17 17 25 26 26 23 26 29 Protection 7 | . . . . . . 3 8 7 7 6 10 5 6 6 6 9 11 11 11 11 8 10 10 10 10 7 Energy Gun 1 | . 21 . . . . . . . . . . . . . . . . . . . . . . . . . Ballistic Gun 3 | . . 14 18 10 . . 1 . . . 1 7 4 6 5 4 2 . . . 3 . . . . . Ballistic Cannon 2 | . . . . . . . 8 . 10 1 7 2 1 . . 1 . . . . . 5 5 2 2 2 Impact Weapon 1 | . 4 14 3 11 11 11 3 6 . . . . . . . . . . . . . 5 5 3 3 3 Slashing Weapon 2 | . . . . . . . . . 2 5 3 1 6 6 5 3 5 5 5 5 3 . . . . . Peak Build Rating 139 | 7 8 9 19 18 10 16 46 41 41 38 62 60 66 73 82 90 88 71 71 71 113 110 110 129 138 139 Average Rating 60 | 5 5 8 13 15 9 11 37 36 37 34 57 57 61 72 73 85 75 71 71 70 98 107 110 114 128 120 On Entrance 55 | . 7 7 9 14 8 9 16 39 35 37 23 58 57 66 73 82 87 64 71 71 70 110 110 110 123 136 Naked Turns . | . . . . . . . . . . . . . . . . . . . . . . . . . . . Heaviest Build 66 | 14 49 9 15 15 3 6 22 20 22 16 44 40 42 42 54 51 50 51 51 51 66 63 63 64 65 58 Greatest Support 74 | 40 40 12 26 14 14 14 36 34 31 30 42 42 42 42 42 52 53 53 53 53 64 64 64 69 74 74 Greatest Overweight (x) 3 | 2 2 . 1 1 . . 2 . 1 1 2 1 . . 1 1 1 . . . 1 1 . 1 . 3 Average Overweight (x) . | . . . . . . . . . . . . . . . . . . . . . . . . . . . Largest Inventory Capacity 25 | 8 25 5 5 5 5 5 5 5 5 5 15 15 15 15 15 15 15 15 15 15 15 15 15 15 15 15 Average Capacity 11 | 7 9 5 5 5 5 5 5 5 5 5 11 15 15 15 15 15 15 15 15 15 15 15 15 15 15 14 Most Carried 15 | 1 5 5 5 5 4 5 5 5 5 5 15 15 15 15 15 15 14 12 12 12 15 15 14 15 15 15 Average Carried 10 | . 2 4 4 4 3 3 4 5 4 5 9 14 14 14 14 14 13 12 12 11 12 14 14 14 14 14 Final Capacity 15 | 8 5 5 5 5 5 5 5 5 5 5 15 15 15 15 15 15 15 15 15 15 15 15 15 15 15 5 Final Carried 15 | 1 5 5 5 4 4 5 5 5 5 5 13 15 14 15 15 14 13 12 12 10 15 14 14 15 15 5 Class Distribution -------------------- 47% | Hacker-Mutant 19% | Wizard-Mutant 17% | Mutant 9% | Commander-Mutant 5% | Scavenger-Mutant Dominant Class ---------------- Mutant | -10/Materials Mutant | -10/Mines Mutant | -9/Materials Mutant | -9/Storage Mutant | -9/Garrison Mutant | -9/Recycling Scavenger-Mutant | -7/Factory Hacker-Mutant | -7/Garrison Hacker-Mutant | -7/Factory Hacker-Mutant | -7/Garrison Hacker-Mutant | -6/Factory Hacker-Mutant | -6/Extension Commander-Mutant | -6/Cetus Commander-Mutant | -6/Archives Commander-Mutant | -6/Hub_04(d) Hacker-Mutant | -5/Factory Hacker-Mutant | -5/Upper Caves Hacker-Mutant | -5/Upper Caves Hacker-Mutant | -5/Warlord Hacker-Mutant | -4/Proximity Caves Wizard-Mutant | -4/Factory Wizard-Mutant | -4/Upper Caves Wizard-Mutant | -4/Upper Caves Wizard-Mutant | -3/Research Wizard-Mutant | -3/Testing Wizard-Mutant | -3/Garrison Resources | -11 -10 -10 -9 -9 -9 -9 -7 -7 -7 -7 -6 -6 -6 -6 -6 -5 -5 -5 -5 -4 -4 -4 -4 -3 -3 -3 ----------- Run | Yrd Mat Min Mat Sto Gar Rec Fac Gar Fac Gar Fac Ext Cet Arc Hub Fac Upp Upp War Pro Fac Upp Upp Res Tes Gar Matter Collected 5858 | 270 80 80 621 16 . 35 434 97 190 114 997 569 50 50 10 581 34 . . 11 725 110 . 293 367 124 Remotely . | . . . . . . . . . . . . . . . . . . . . . . . . . . . Salvage Created 6730 | 114 314 39 751 . . 223 219 19 109 281 982 629 . 312 . 1029 . . . . 1099 . . 348 164 98 Parts 404 | 3 19 . 43 . . 6 12 6 8 23 73 34 . 25 . 54 . . . . 60 . . 18 12 8 Haulers Intercepted 4 | . 1 . 2 . . . . . . . . . . . . 1 . . . . . . . . . . Recyclers Shooed 10 | . 1 . 1 . . . . . . . 1 2 . . . 2 . . . . 2 . . 1 . . Parts Field Recycled . | . . . . . . . . . . . . . . . . . . . . . . . . . . . Retrieved Matter . | . . . . . . . . . . . . . . . . . . . . . . . . . . . Parts Self-Destructed 6 | . . . . . . . . . . . . . . . . . . 1 . . . 5 . . . . Prevented . | . . . . . . . . . . . . . . . . . . . . . . . . . . . Kills | -11 -10 -10 -9 -9 -9 -9 -7 -7 -7 -7 -6 -6 -6 -6 -6 -5 -5 -5 -5 -4 -4 -4 -4 -3 -3 -3 ------- Run | Yrd Mat Min Mat Sto Gar Rec Fac Gar Fac Gar Fac Ext Cet Arc Hub Fac Upp Upp War Pro Fac Upp Upp Res Tes Gar Combat Hostiles Destroyed 138 | . 9 1 13 . . . 5 3 4 10 29 10 . . . 18 . . . . 21 . . 5 3 7 Melee 15 | . . 1 . . . . . . 2 6 1 3 . . . 1 . . . . 1 . . . . . Guns 54 | . 9 . 13 . . . . . . . 1 7 . . . 8 . . . . 14 . . 2 . . Cannons 35 | . . . . . . . 2 . 2 . 18 . . . . 2 . . . . 4 . . . 3 4 AOE 33 | . . . . . . . 3 3 . 4 9 . . . . 7 . . . . 1 . . 3 . 3 Classes Destroyed 18 | 2 5 1 3 . . . 3 1 1 2 . . . . . . . . . . . . . . . . Worker 15 | . . 1 1 . . . 1 . . . 4 . . . . 4 . . . . 2 . . 1 1 . Builder 6 | . . . 1 . . . . . . . 1 1 . . . 2 . . . . 1 . . . . . Tunneler 2 | 1 . . . . . . . . . . . . . . . . . . . . 1 . . . . . Hauler 4 | . 1 . 2 . . . . . . . . . . . . 1 . . . . . . . . . . Recycler 11 | 1 . . 2 . . 3 . . . . 1 1 . . . 1 . . . . 1 . . 1 . . Mechanic 2 | . . . . . . . . . . 1 . . . . . . . . . . 1 . . . . . Operator 19 | . 1 . 2 . . . . 1 . . . 3 . 9 . 2 . . . . 1 . . . . . Drone 2 | . . . . . . . . . 1 . . . . . . . . . . . 1 . . . . . Watcher 4 | . 1 . 1 . . . 1 . . . . . . . . . . . . . . . . 1 . . Swarmer 53 | . 5 1 6 . . . . . . 4 12 4 . . . 4 . . . . 9 . . 3 . 5 Cutter 7 | . . . . . . . . 3 . . 2 . . . . . . . . . . . . . . 2 Grunt 29 | . 4 . 4 . . . 2 . 2 3 5 2 . . . 5 . . . . 2 . . . . . Brawler 1 | . . . 1 . . . . . . . . . . . . . . . . . . . . . . . Duelist 2 | . . . . . . . 1 . . . 1 . . . . . . . . . . . . . . . Sentry 12 | . . . 2 . . . . . 1 . 2 3 . . . 3 . . . . 1 . . . . . Demolisher 1 | . . . . . . . . . . 1 . . . . . . . . . . . . . . . . Hunter 6 | . . . . . . . 1 . . . 1 1 . . . 1 . . . . 2 . . . . . Programmer 25 | . . . . . . . 1 . . 2 6 . . . . 5 . . . . 6 . . 2 3 . Best Kill Streak 13 | 2 4 1 4 . . 1 4 3 2 4 4 4 . 4 . 7 . . . . 13 . . 3 3 3 Combat Bots Only 9 | . 4 1 3 . . . 4 3 2 4 4 4 . . . 5 . . . . 9 . . 3 3 3 Max Kills in Single Turn 3 | 1 1 1 2 . . 1 2 3 1 3 3 1 . 1 . 3 . . . . 2 . . 3 1 3 Gunslinging 1 | . . . 1 . . . . . . . . . . . . . . . . . 1 . . . . . Exploded 3 | . . . . . . . 2 2 . 3 3 . . . . 3 . . . . 1 . . 3 . 3 Melee 1 | . . 1 . . . . . . 1 1 1 1 . . . 1 . . . . 1 . . . . . Uniques/NPCs Destroyed . | . . . . . . . . . . . . . . . . . . . . . . . . . . . Combat | -11 -10 -10 -9 -9 -9 -9 -7 -7 -7 -7 -6 -6 -6 -6 -6 -5 -5 -5 -5 -4 -4 -4 -4 -3 -3 -3 -------- Run | Yrd Mat Min Mat Sto Gar Rec Fac Gar Fac Gar Fac Ext Cet Arc Hub Fac Upp Upp War Pro Fac Upp Upp Res Tes Gar Hostile Shots Fired 1533 | . 88 5 97 52 10 . 49 6 22 179 204 92 2 . 5 140 39 4 . 17 229 26 4 66 23 174 Missed 580 | . 20 3 38 24 6 . 26 3 6 44 93 48 1 . 3 62 20 2 . 7 86 9 . 27 10 42 Hits 953 | . 68 2 59 28 4 . 23 3 16 135 111 44 1 . 2 78 19 2 . 10 143 17 4 39 13 132 Melee 18 | . . . . . . . . . . . 2 . . . . . . . . . . . . . . 16 Projectile 935 | . 68 2 59 28 4 . 23 3 16 135 109 44 1 . 2 78 19 2 . 10 143 17 4 39 13 116 AOE 16 | . . . . . . . . 3 . 6 . . . . . . . . . . 6 . . . . 1 Critical Strikes 39 | . 1 . 2 . 2 . . . 2 5 2 1 . . . 2 1 . . . 5 2 . 2 1 11 Actively Blocked 1 | . . . . . . . . . . . . . . . . . . . . . . . . . . 1 Damage Taken 16244 | . 631 16 699 373 58 . 235 149 213 1519 2108 498 42 20 37 1421 377 29 . 182 2762 387 84 909 267 3228 Core 3705 | . 96 . 152 125 44 . 43 . 39 600 446 101 . . . 191 20 . . 39 446 46 . 141 . 1176 Absorbed by Shields 135 | . . . . . . . . . . 4 . 91 40 . . . . . . . . . . . . . Redirected to Shielding 454 | . . . . . . . . . . . 119 15 . . . 37 36 7 . . 98 30 . 11 28 73 Ignored by Resistances 45 | . . . . . . . . . . . 45 . . . . . . . . . . . . . . . Regen/Repaired (Parts) 2452 | . . . 14 . . . . . 68 47 202 237 . . . 85 . . . . 1247 . . 466 86 . Core Remaining (%) 49 | 100 . 61 . . . 19 . . . 2 . . . . 35 . . . . 75 . . 57 . . . Volleys Fired 356 | 6 45 . 55 . . . 12 3 9 8 61 33 . . . 35 . . . . 58 . . 12 7 12 Largest 2 | 2 2 . 2 . . . 2 1 2 1 2 2 . . . 2 . . . . 2 . . 2 2 1 Hottest 127 | 90 100 . 46 . . . 80 33 80 33 83 73 . . . 82 . . . . 100 . . 127 101 51 Shots Fired 622 | 12 81 . 106 . . . 23 3 17 8 93 63 . . . 65 . . . . 111 . . 14 14 12 Gun 373 | 12 81 . 106 . . . . . . . 3 43 . . . 35 . . . . 82 . . 11 . . Cannon 219 | . . . . . . . 20 . 16 . 85 18 . . . 27 . . . . 26 . . 2 14 11 Launcher 21 | . . . . . . . 3 3 . 3 2 2 . . . 3 . . . . 3 . . 1 . 1 Special 9 | . . . . . . . . . 1 5 3 . . . . . . . . . . . . . . . Kinetic 488 | . . . 106 . . . 20 . 16 . 88 61 . . . 62 . . . . 108 . . 2 14 11 Thermal 104 | 12 81 . . . . . . . . . . . . . . . . . . . . . . 11 . . Explosive 21 | . . . . . . . 3 3 . 3 2 2 . . . 3 . . . . 3 . . 1 . 1 Electromagnetic . | . . . . . . . . . . . . . . . . . . . . . . . . . . . Robot Hit Streak 19 | 12 15 . 12 . . . 17 . 5 10 11 11 . . . 10 . . . . 19 . . 7 9 7 Robot Miss Streak 5 | . 4 . 2 . . . 2 3 5 1 5 3 . . . 2 . . . . 5 . . 1 2 4 Penetration Max 1 | . . . . . . . . . . . . 1 . . . 1 . . . . 1 . . . . . Secondary Targets 8 | . 1 . 4 . . . . . . . . 1 . . . . . . . . 2 . . . . . Max Gunslinging Chain 1 | . 1 . 1 . . . . . . . . 1 . . . . . . . . 1 . . . . . Shots Hit Robots 532 | 12 54 3 83 . . 3 24 3 14 25 68 58 . 20 . 54 . . . . 79 . . 15 9 8 Core Hits 303 | 3 18 . 25 . . 2 13 9 5 21 41 24 . 9 . 51 . . . . 64 . . 7 4 7 Critical Kills 7 | . . . 1 . . . . . . . . . . . . 5 . . . . . . . 1 . . Critical Parts Destroyed 12 | . . 2 1 . . . . . . . . 3 . . . 4 . . . . . . . 2 . . Critical Strikes 43 | . 5 2 2 . . . . . . 1 7 4 . . . 12 . . . . 4 . . 4 2 . Burn 5 | . 5 . . . . . . . . . . . . . . . . . . . . . . . . . Destroy 12 | . . . . . . . . . . . . 3 . . . 9 . . . . . . . . . . Blast 13 | . . . . . . . . . . . 5 . . . . 1 . . . . 4 . . 1 2 . Smash 7 | . . 2 2 . . . . . . . . . . . . . . . . . . . . 3 . . Sever 6 | . . . . . . . . . . 1 2 1 . . . 2 . . . . . . . . . . Melee Attacks 341 | . 4 4 26 2 12 8 17 11 8 44 47 21 . 22 1 30 8 1 4 . 13 . . 38 8 12 Impact 136 | . 4 4 25 2 12 8 14 9 . . . . . . . . . . . . . . . 38 8 12 Slashing 199 | . . . . . . . . . 8 44 47 21 . 22 1 30 8 1 4 . 13 . . . . . Piercing . | . . . . . . . . . . . . . . . . . . . . . . . . . . . Sneak Attacks 43 | . . 1 4 . . 3 4 . 1 2 5 5 . 10 . 3 . . . . 2 . . 2 1 . Combat Hostiles 4 | . . . . . . . . . 1 2 . . . . . . . . . . 1 . . . . . Follow-up Attacks . | . . . . . . . . . . . . . . . . . . . . . . . . . . . Damage Inflicted 20908 | 139 704 127 1485 . . 189 807 418 421 1170 2883 2010 . 1221 . 3829 . . . . 3179 . . 940 495 891 Guns 5431 | 139 699 . 1124 . . . . . . . 30 798 . . . 850 . . . . 1429 . . 362 . . Cannons 4489 | . . . . . . . 433 . 248 . 1504 386 . . . 549 . . . . 686 . . 37 382 264 Explosions 5930 | . . . . . . . 235 389 . 453 851 206 . . . 2014 . . . . 926 . . 289 . 567 Melee 5042 | . . 127 361 . . 189 138 29 173 707 498 620 . 1221 . 416 . . . . 138 . . 252 113 60 Ramming 16 | . 5 . . . . . 1 . . 10 . . . . . . . . . . . . . . . . Kinetic 8720 | . . . 1124 . . . 433 . 248 . 1534 1184 . . . 1399 . . . . 2115 . . 37 382 264 Thermal 2704 | 139 699 . . . . . . . . . 491 . . . . 915 . . . . 98 . . 362 . . Explosive 3718 | . . . . . . . 235 389 . 453 360 206 . . . 993 . . . . 226 . . 289 . 567 Electromagnetic 708 | . . . . . . . . . . . . . . . . 106 . . . . 602 . . . . . Impact 1269 | . . 127 361 . . 189 138 29 . . . . . . . . . . . . . . . 252 113 60 Slashing 3773 | . . . . . . . . . 173 707 498 620 . 1221 . 416 . . . . 138 . . . . . Piercing . | . . . . . . . . . . . . . . . . . . . . . . . . . . . Highest Corruption 12 | . . . . . . 4 1 1 1 4 1 1 . . . 1 2 2 2 . 8 8 11 6 7 12 Average Corruption 2 | . . . . . . 3 1 1 1 1 1 1 . . . 1 1 2 2 . 2 8 8 5 6 7 Corruption Purged 3 | . . . . . . . . . . . 1 1 . . . . . . . . 1 . . . . . Corruption Blocked . | . . . . . . . . . . . . . . . . . . . . . . . . . . . Effects 62 | . . . . . . . 2 . 5 4 2 3 . . . 1 2 . . . 7 6 . 9 12 9 Message Errors 16 | . . . . . . . . . 2 1 . 1 . . . 1 . . . . 1 2 . 2 3 3 Matter Fused 16 | . . . . . . . 1 . 1 2 1 . . . . . 1 . . . 1 1 . 4 3 1 Heat Flow Errors 9 | . . . . . . . . . . 1 1 . . . . . . . . . 4 1 . . 2 . Energy Discharges 7 | . . . . . . . 1 . 1 . . . . . . . 1 . . . 1 . . 2 1 . Parts Rejected 2 | . . . . . . . . . . . . . . . . . . . . . . . . . . 2 Data Loss (minor) 6 | . . . . . . . . . . . . . . . . . . . . . . 1 . 1 3 1 Data Loss (major) 3 | . . . . . . . . . . . . 2 . . . . . . . . . 1 . . . . Alerts 2 | . . . . . . . . . 1 . . . . . . . . . . . . . . . . 1 Misdirections 1 | . . . . . . . . . . . . . . . . . . . . . . . . . . 1 Overload Shots . | . . . . . . . . . . . . . . . . . . . . . . . . . . . Overflow Damage 1689 | . . 111 112 . . 43 19 18 57 23 152 64 . 275 . 254 . . . . 126 . . 230 118 87 Projectiles 104 | . . . . . . . . . . . 20 . . . . . . . . . 25 . . . 45 14 Explosions 462 | . . . . . . . . 18 . . 74 . . . . 232 . . . . 23 . . 42 . 73 Melee 1123 | . . 111 112 . . 43 19 . 57 23 58 64 . 275 . 22 . . . . 78 . . 188 73 . Knockbacks 51 | . . 1 1 . . . 1 . 3 . 12 4 . . . 10 . . . . 9 . . 3 5 2 Impact 5 | . . 1 1 . . . . . . . . . . . . . . . . . . . . 1 1 1 Kinetic 42 | . . . . . . . 1 . 3 . 12 4 . . . 8 . . . . 8 . . 1 4 1 Secondary 4 | . . . . . . . . . . . . . . . . 2 . . . . 1 . . 1 . . Self-Inflicted Damage 497 | . . . . . . . . 25 . 33 389 . . . . 13 . . . . . . . . . 37 Shots 11 | . . . . . . . . 1 . 1 7 . . . . 1 . . . . . . . . . 1 Rammed 9 | . 1 . . . . . 1 . . 6 . . . . 1 . . . . . . . . . . . Targets Rammed 9 | . 1 . . . . . 1 . . 6 . . . . 1 . . . . . . . . . . . Kicked . | . . . . . . . . . . . . . . . . . . . . . . . . . . . Crushed . | . . . . . . . . . . . . . . . . . . . . . . . . . . . Highest Temperature 358 | 120 312 . 6 14 5 . 111 . 185 259 159 18 . . . 87 . 358 . . 277 234 . 180 180 334 Average Temperature 60 | 48 108 . 6 14 4 . 34 . 94 128 17 6 . . . 21 . 322 . . 54 118 . 43 65 140 Received Heat Transfer 2843 | . 192 . 243 159 72 . 78 . 141 330 426 146 . . 18 246 93 . . 27 57 36 . 78 . 501 Effects 3 | . 1 . . . . . . . . . . . . . . . . 1 . . . . . . . 1 Energy Bleed 2 | . 1 . . . . . . . . . . . . . . . . 1 . . . . . . . . Interference 1 | . . . . . . . . . . . . . . . . . . . . . . . . . . 1 Siege Activations . | . . . . . . . . . . . . . . . . . . . . . . . . . . . Martial Activations . | . . . . . . . . . . . . . . . . . . . . . . . . . . . Shielding Activations . | . . . . . . . . . . . . . . . . . . . . . . . . . . . Robots Disrupted . | . . . . . . . . . . . . . . . . . . . . . . . . . . . Combat Hostiles . | . . . . . . . . . . . . . . . . . . . . . . . . . . . Robots Corrupted 9 | . . 1 3 . . 1 1 . . . . . . . . . . . . . 1 . . 1 1 . Combat Hostiles 1 | . . . . . . . . . . . . . . . . . . . . . 1 . . . . . Parts Fried 13 | . . 1 6 . . . 1 . . . . . . . . . . . . . 3 . . 1 1 . Impact Corruptions 23 | . . 5 6 . . 2 1 . . . . . . . . . . . . . . . . 6 3 . Robots Melted . | . . . . . . . . . . . . . . . . . . . . . . . . . . . Combat Hostiles . | . . . . . . . . . . . . . . . . . . . . . . . . . . . Parts Melted 9 | . 8 . . . . . . . . . . . . . . 1 . . . . . . . . . . Heat Transferred 3917 | 372 2225 . . . . . . . . . 300 . . . . 600 . . . . 50 . . 370 . . Parts Sabotaged . | . . . . . . . . . . . . . . . . . . . . . . . . . . . Parts Stolen . | . . . . . . . . . . . . . . . . . . . . . . . . . . . Parts Stripped . | . . . . . . . . . . . . . . . . . . . . . . . . . . . Power Chain Reactions 1 | . . . . . . . . . . . . . . . . . . . . . 1 . . . . . Alert | -11 -10 -10 -9 -9 -9 -9 -7 -7 -7 -7 -6 -6 -6 -6 -6 -5 -5 -5 -5 -4 -4 -4 -4 -3 -3 -3 ------- Run | Yrd Mat Min Mat Sto Gar Rec Fac Gar Fac Gar Fac Ext Cet Arc Hub Fac Upp Upp War Pro Fac Upp Upp Res Tes Gar Maximum Alert Level 3 | . . . 2 1 . . 2 1 . 1 3 2 2 1 1 2 . . . . 3 . . 2 1 1 Low Security (%) 50 | 100 100 100 30 88 100 100 9 38 100 70 12 55 . 10 97 48 . . . . 66 . . 52 77 79 Level 1 28 | . . . 27 11 . . 62 61 . 29 34 35 11 89 2 49 . . . . 1 . . 39 22 20 Level 2 19 | . . . 42 . . . 27 . . . 46 9 88 . . 2 . . . . 29 . . 8 . . Level 3 1 | . . . . . . . . . . . 5 . . . . . . . . . 2 . . . . . Level 4 . | . . . . . . . . . . . . . . . . . . . . . . . . . . . Level 5 . | . . . . . . . . . . . . . . . . . . . . . . . . . . . High Security . | . . . . . . . . . . . . . . . . . . . . . . . . . . . Max Security . | . . . . . . . . . . . . . . . . . . . . . . . . . . . Peak Influence 920 | 10 153 81 468 201 95 109 583 349 191 298 920 640 501 336 229 605 . . . . 735 . . 454 280 223 Initial 368 | . . 41 18 197 1 42 368 48 167 9 140 226 354 160 64 82 . . . . . . . 205 252 42 Average 233 | . 53 37 289 134 49 50 381 223 92 139 433 197 442 266 122 184 . . . . 213 . . 214 110 123 Influence Increases 11174 | 10 454 87 904 9 104 283 865 381 138 409 1931 1221 197 266 415 1062 . . . . 1257 95 . 566 194 326 Destroy 0b10 Robot/C 4220 | . 180 60 500 . 20 40 240 160 80 220 680 620 80 80 140 380 . . . . 400 20 . 100 60 160 Destroy 0b10 Robot/NC 340 | 10 15 5 50 . . 15 20 . 5 . 30 30 5 45 . 50 . . . . 40 . . 15 5 . Destroy Leader 732 | . 44 10 118 . . . 84 10 30 10 150 62 . . 30 82 . . . . 60 . . 22 10 10 Allied During Kill 946 | . . 12 57 . 3 4 44 20 4 5 8 428 82 125 142 10 . . . . . . . . . 2 Successful Hack 565 | . 33 . 36 7 6 54 51 8 10 . 129 43 . . . 69 . . . . 50 . . 30 39 . Select Force Hacks 230 | . 30 . . . . 150 . . . . . . . . 50 . . . . . . . . . . . Disable Machine 825 | . . . 15 . . 15 45 . . . 150 15 . 15 15 195 . . . . 345 . . . 15 . Anti-Garrison Action 300 | . . . . . 50 . . 100 . 100 . . . . . . . . . . . . . . . 50 Destroy Structure 776 | . 2 . 8 2 10 5 16 53 9 44 124 8 15 1 8 216 . . . . 92 . . 84 20 59 Advance Influence 350 | . . . . . . . 350 . . . . . . . . . . . . . . . . . . . Partial Spotted 360 | . . . 15 . 15 . . 30 . . 75 15 15 . 30 60 . . . . 30 . . 60 15 . Lose Combat Pursuer 1530 | . 150 . 105 . . . 15 . . 30 585 . . . . . . . . . 240 75 . 255 30 45 Influence Decreases 11066 | 10 347 147 483 474 12 332 842 131 444 154 1736 1050 430 483 430 1231 . . . . 634 341 72 422 587 274 Entered New Map 2333 | . . 66 29 271 2 53 28 21 152 4 128 237 280 241 120 87 . . . . . 231 72 100 197 14 Time Decay 4459 | 10 277 81 366 60 . 190 334 . 262 . 618 375 130 222 110 473 . . . . 379 80 . 302 190 . Lost Part 694 | . 70 . 30 33 10 . 10 10 10 100 60 10 . . . 31 . . . . 70 10 . 20 . 220 Lost Ally 1103 | . . . 58 110 . . 20 100 20 50 180 140 20 20 200 40 . . . . 35 20 . . 50 40 Purge Threat 2477 | . . . . . . 89 450 . . . 750 288 . . . 600 . . . . 150 . . . 150 . Squads Dispatched 67 | . 6 . 3 1 . . 6 . 2 . 18 4 . . 3 10 . . . . 6 . . 5 3 . Investigation 17 | . 3 . 1 1 . . . . 1 . 3 2 . . 2 1 . . . . 1 . . 1 1 . Extermination 23 | . . . . . . . 3 . 1 . 8 . . . . 4 . . . . 3 . . 3 1 . Reinforcement 23 | . 3 . 2 . . . 3 . . . 4 2 . . 1 5 . . . . 2 . . 1 . . Assault 1 | . . . . . . . . . . . . . . . . . . . . . . . . . 1 . Garrison 3 | . . . . . . . . . . . 3 . . . . . . . . . . . . . . . Intercept . | . . . . . . . . . . . . . . . . . . . . . . . . . . . Searches Triggered . | . . . . . . . . . . . . . . . . . . . . . . . . . . . Construction Impeded 6 | . . . . . . . 2 . . . . . . . . 3 . . . . 1 . . . . . Haulers Reinforced 1 | . . . . . . . . . . . . . . . . 1 . . . . . . . . . . Active Scanning Responses . | . . . . . . . . . . . . . . . . . . . . . . . . . . . Cargo Convoy Interrupts 1 | . . . . . . . 1 . . . . . . . . . . . . . . . . . . . Stealth | -11 -10 -10 -9 -9 -9 -9 -7 -7 -7 -7 -6 -6 -6 -6 -6 -5 -5 -5 -5 -4 -4 -4 -4 -3 -3 -3 --------- Run | Yrd Mat Min Mat Sto Gar Rec Fac Gar Fac Gar Fac Ext Cet Arc Hub Fac Upp Upp War Pro Fac Upp Upp Res Tes Gar Distress Signals 32 | . 3 . 4 2 . . 3 . 1 . 1 2 1 . . 3 . . . . 7 . . 3 2 . Communications Jammed . | . . . . . . . . . . . . . . . . . . . . . . . . . . . Distress Signals . | . . . . . . . . . . . . . . . . . . . . . . . . . . . Times Spotted 497 | . 33 3 39 12 4 1 14 8 5 21 79 39 5 7 5 64 15 4 . 5 49 11 1 31 16 26 Peak Tracking Total 13 | . 8 3 4 11 4 1 4 4 2 6 6 4 5 2 4 7 5 3 . 4 8 9 1 8 10 13 Tactical Retreats 86 | . 4 . 7 . . . 1 . . 2 20 6 . . . 15 4 1 . 1 11 2 . 8 1 3 Traps | -11 -10 -10 -9 -9 -9 -9 -7 -7 -7 -7 -6 -6 -6 -6 -6 -5 -5 -5 -5 -4 -4 -4 -4 -3 -3 -3 ------- Run | Yrd Mat Min Mat Sto Gar Rec Fac Gar Fac Gar Fac Ext Cet Arc Hub Fac Upp Upp War Pro Fac Upp Upp Res Tes Gar Traps Triggered 19 | . 2 . . 1 1 . . . . 2 6 1 . . . 1 . . . . 2 . . 1 . 2 Indirectly 2 | . . . . . . . . . . . . . . . . . . . . . 2 . . . . . Trap Hack Attempts 2 | . . . . . . . . 2 . . . . . . . . . . . . . . . . . . Triggered . | . . . . . . . . . . . . . . . . . . . . . . . . . . . Disarmed 10 | . . . . . . . . 1 . . . . . . . 5 . . . . . . . . 4 . Reprogrammed . | . . . . . . . . . . . . . . . . . . . . . . . . . . . Reused . | . . . . . . . . . . . . . . . . . . . . . . . . . . . Traps Extracted . | . . . . . . . . . . . . . . . . . . . . . . . . . . . Installed . | . . . . . . . . . . . . . . . . . . . . . . . . . . . Triggered . | . . . . . . . . . . . . . . . . . . . . . . . . . . . Objects Rigged 9 | . . . . . . . . . . . . . . . . 9 . . . . . . . . . . Exploded 4 | . . . . . . . . . . . . . . . . 4 . . . . . . . . . . Machines | -11 -10 -10 -9 -9 -9 -9 -7 -7 -7 -7 -6 -6 -6 -6 -6 -5 -5 -5 -5 -4 -4 -4 -4 -3 -3 -3 ---------- Run | Yrd Mat Min Mat Sto Gar Rec Fac Gar Fac Gar Fac Ext Cet Arc Hub Fac Upp Upp War Pro Fac Upp Upp Res Tes Gar Machines Disabled 63 | . 1 . 2 . 1 1 3 1 . 2 10 2 . 1 1 13 . . . . 23 . . . 1 1 Max in Single Turn 11 | . 1 . 1 . 1 . 1 1 . 1 4 1 . . . 7 . . . . 11 . . . 1 1 Garrison Access 4 | . . . . . . . . . . . 1 . . . . 1 . . . . 1 . . 1 . . Garrison Relay 5 | . . . . . 1 . . 1 . 2 . . . . . . . . . . . . . . . 1 Network Hub 1 | . . . . . . . . . . . . . . . 1 . . . . . . . . . . . Machines Repaired . | . . . . . . . . . . . . . . . . . . . . . . . . . . . Machines Dismantled . | . . . . . . . . . . . . . . . . . . . . . . . . . . . Machines Sabotaged 1 | . . . . . . . . . . . . . . . 1 . . . . . . . . . . . Overloaded Fab Kills . | . . . . . . . . . . . . . . . . . . . . . . . . . . . Hacking | -11 -10 -10 -9 -9 -9 -9 -7 -7 -7 -7 -6 -6 -6 -6 -6 -5 -5 -5 -5 -4 -4 -4 -4 -3 -3 -3 --------- Run | Yrd Mat Min Mat Sto Gar Rec Fac Gar Fac Gar Fac Ext Cet Arc Hub Fac Upp Upp War Pro Fac Upp Upp Res Tes Gar Machines Accessed 134 | . 7 . 8 3 1 11 11 2 5 . 22 14 3 1 3 17 . 1 . . 12 . . 5 8 . Terminals 86 | . 6 . 6 2 1 6 6 2 1 . 13 13 3 . 3 11 . . . . 6 . . 1 6 . Fabricators 15 | . . . . . . . 3 . 3 . 3 . . . . 4 . . . . 1 . . 1 . . Repair Stations 11 | . . . 1 . . . . . . . 2 1 . . . 1 . . . . 3 . . 2 1 . Recycling Units 6 | . 1 . . . . 5 . . . . . . . . . . . . . . . . . . . . Scanalyzers 4 | . . . 1 . . . . . . . 2 . . . . . . . . . 1 . . . . . Garrison Access 10 | . . . . 1 . . 2 . 1 . 2 . . . . 1 . . . . 1 . . 1 1 . Total Hacks 489 | . 23 . 26 4 2 33 34 4 15 . 79 54 7 1 7 78 . 1 . . 65 . . 12 44 . Successful 324 | . 12 . 14 3 1 22 20 1 6 . 50 36 4 1 3 53 . 1 . . 53 . . 9 35 . Failed 162 | . 11 . 11 1 1 10 14 3 9 . 29 18 3 . 4 25 . . . . 11 . . 3 9 . Catastrophic 12 | . 1 . 1 . . 1 1 . 2 . 3 . . . . 3 . . . . . . . . . . Database Lockouts 3 | . . . 1 . . 1 . . . . . . . . . . . . . . 1 . . . . . Manual 226 | . 15 . 20 1 . 12 18 . 9 . 41 22 1 . 5 38 . . . . 23 . . 2 19 . Terminals 365 | . 21 . 21 3 2 27 24 4 1 . 53 44 7 . 7 60 . . . . 45 . . 6 40 . Fabricators 41 | . . . . . . . 8 . 13 . 5 . . . . 12 . . . . 2 . . 1 . . Repair Stations 46 | . . . 3 . . . . . . . 6 10 . . . 5 . . . . 15 . . 4 3 . Recycling Units 8 | . 2 . . . . 6 . . . . . . . . . . . . . . . . . . . . Scanalyzers 16 | . . . 2 . . . . . . . 12 . . . . . . . . . 2 . . . . . Garrison Access 11 | . . . . 1 . . 2 . 1 . 3 . . . . 1 . . . . 1 . . 1 1 . Terminal Hacks 158 | . 5 . 5 2 1 14 9 1 . . 15 19 4 1 . 28 . 1 . . 27 . . 2 24 . Record 4 | . . . . . . . . . . . . . 3 1 . . . . . . . . . . . . Part Schematic 15 | . . . . . . 7 . . . . . 3 . . . 3 . . . . . . . . 2 . Robot Schematic 4 | . . . . . . 2 . . . . . . . . . . . . . . 2 . . . . . Robot Analysis 19 | . 3 . 4 1 . 1 . . . . 1 3 . . . 1 . . . . 5 . . . . . Prototype ID Bank 14 | . 1 . . . . 2 1 . . . 2 1 . . . 2 . . . . 2 . . . 3 . Open Door 11 | . . . . 1 1 . . . . . . 7 1 . . . . 1 . . . . . . . . Level Access Points 2 | . . . . . . . 1 . . . . . . . . . . . . . . . . . 1 . Branch Access Points 8 | . . . 1 . . . 1 . . . 1 1 . . . 1 . . . . 1 . . 1 1 . Emergency Access Points 3 | . . . . . . . . . . . 1 . . . . 1 . . . . . . . . 1 . Terminal Index 5 | . . . . . . 1 . . . . 1 . . . . 1 . . . . 1 . . . 1 . Fabricator Index 5 | . . . . . . . 1 . . . 1 . . . . 1 . . . . 1 . . . 1 . Recycling Unit Index 1 | . . . . . . . . . . . . . . . . . . . . . 1 . . . . . Scanalyzer Index 3 | . . . . . . . . . . . . . . . . 1 . . . . 1 . . . 1 . Garrison Index 3 | . . . . . . . . . . . . . . . . 1 . . . . 1 . . . 1 . Unreport Threat 16 | . . . . . . 1 3 . . . 4 2 . . . 4 . . . . 1 . . . 1 . Locate Traps 8 | . . . . . . . . . . . 1 . . . . 2 . . . . 3 . . . 2 . Disarm Traps 2 | . . . . . . . . . . . . . . . . 1 . . . . . . . . 1 . Maintenance Status 1 | . . . . . . . 1 . . . . . . . . . . . . . . . . . . . Patrol Status 1 | . . . . . . . . . . . 1 . . . . . . . . . . . . . . . Transport Status 2 | . . . . . . . . . . . 1 . . . . 1 . . . . . . . . . . Investigation Status 1 | . . . . . . . . . . . . . . . . . . . . . . . . . 1 . Extermination Status 2 | . . . . . . . . . . . . . . . . 1 . . . . . . . . 1 . Assault Status 2 | . . . . . . . 1 . . . . . . . . 1 . . . . . . . . . . Recall Investigation 1 | . . . . . . . . . . . . . . . . 1 . . . . . . . . . . Recall Extermination 1 | . . . . . . . . . . . . . . . . . . . . . 1 . . . . . Recall Reinforcements 3 | . . . . . . . . . . . . . . . . 2 . . . . 1 . . . . . Hauler Manifests 3 | . 1 . . . . . . . . . . . . . . 1 . . . . 1 . . . . . Registered Components 2 | . . . . . . . . . . . . . . . . . . . . . 1 . . . 1 . Registered Prototypes 2 | . . . . . . . . . . . . . . . . 1 . . . . 1 . . . . . Zone Layout 11 | . . . . . . . . . . . 1 2 . . . 1 . . . . 3 . . 1 3 . Garrison Registry 1 | . . . . . . . . 1 . . . . . . . . . . . . . . . . . . Protovariant Controls 2 | . . . . . . . . . . . . . . . . . . . . . . . . . 2 . Fabricator Hacks 11 | . . . . . . . 3 . 3 . 1 . . . . 3 . . . . 1 . . . . . Network Status 2 | . . . . . . . . . . . 1 . . . . . . . . . 1 . . . . . Load Schematic 2 | . . . . . . . 1 . 1 . . . . . . . . . . . . . . . . . Build 7 | . . . . . . . 2 . 2 . . . . . . 3 . . . . . . . . . . Repair Station Hacks 41 | . . . 2 . . . . . . . 4 10 . . . 5 . . . . 14 . . 4 2 . Scan Component 21 | . . . 1 . . . . . . . 2 5 . . . 3 . . . . 7 . . 2 1 . Repair 20 | . . . 1 . . . . . . . 2 5 . . . 2 . . . . 7 . . 2 1 . Recycling Unit Hacks 2 | . 1 . . . . 1 . . . . . . . . . . . . . . . . . . . . Report Inventory 1 | . . . . . . 1 . . . . . . . . . . . . . . . . . . . . Retrieve Components 1 | . 1 . . . . . . . . . . . . . . . . . . . . . . . . . Scanalyzer 16 | . . . 2 . . . . . . . 12 . . . . . . . . . 2 . . . . . Insert Component 8 | . . . 1 . . . . . . . 6 . . . . . . . . . 1 . . . . . Analyze 8 | . . . 1 . . . . . . . 6 . . . . . . . . . 1 . . . . . Garrison Access Hacks 8 | . . . . 1 . . 1 . 1 . 1 . . . . 1 . . . . 1 . . 1 1 . Unlock Access 4 | . . . . 1 . . 1 . 1 . . . . . . . . . . . . . . . 1 . Seal Access 4 | . . . . . . . . . . . 1 . . . . 1 . . . . 1 . . 1 . . Unauthorized Hacks 88 | . 6 . 5 . . 7 7 . 2 . 17 7 . . 3 16 . . . . 8 . . 2 8 . Terminals 66 | . 5 . 5 . . 2 4 . . . 12 7 . . 3 13 . . . . 6 . . 1 8 . Track 3 | . . . . . . . . . . . 2 1 . . . . . . . . . . . . . . Assimilate 4 | . . . 1 . . . 1 . . . . . . . . 1 . . . . . . . . 1 . Botnet 53 | . 5 . 4 . . 2 3 . . . 9 5 . . 1 11 . . . . 6 . . 1 6 . Detonate 1 | . . . . . . . . . . . . . . . . 1 . . . . . . . . . . Operators 3 | . . . . . . . . . . . 1 1 . . . . . . . . . . . . 1 . Sabotage 2 | . . . . . . . . . . . . . . . 2 . . . . . . . . . . . Fabricators 13 | . . . . . . . 2 . 2 . 4 . . . . 3 . . . . 1 . . 1 . . Report 1 | . . . . . . . . . . . 1 . . . . . . . . . . . . . . . Fabnet 12 | . . . . . . . 2 . 2 . 3 . . . . 3 . . . . 1 . . 1 . . Repair Stations 1 | . . . . . . . . . . . . . . . . . . . . . 1 . . . . . Patch 1 | . . . . . . . . . . . . . . . . . . . . . 1 . . . . . Recycling Units 6 | . 1 . . . . 5 . . . . . . . . . . . . . . . . . . . . Tunnel 6 | . 1 . . . . 5 . . . . . . . . . . . . . . . . . . . . Scanalyzers . | . . . . . . . . . . . . . . . . . . . . . . . . . . . Garrison Access 2 | . . . . . . . 1 . . . 1 . . . . . . . . . . . . . . . Reprogram 1 | . . . . . . . . . . . 1 . . . . . . . . . . . . . . . Watchers 1 | . . . . . . . 1 . . . . . . . . . . . . . . . . . . . Data Cores Recovered 2 | . . . . . . . . . . . . . . . . 1 . . . . 1 . . . . . Used 1 | . . . . . . . . . . . . . . . . . . . . . 1 . . . . . Hacking Detections 101 | . 7 . 8 1 1 6 11 1 5 . 18 7 3 . 2 13 . . . . 8 . . 2 8 . Full Trace Events 12 | . 1 . 1 . . 2 . 1 1 . 2 1 . . . 1 . . . . . . . 1 1 . Feedback Events 2 | . . . . . . 1 . . . . . 1 . . . . . . . . . . . . . . Corruption 1 | . . . . . . 1 . . . . . . . . . . . . . . . . . . . . Hackware Fried 1 | . . . . . . . . . . . . 1 . . . . . . . . . . . . . . Feedback Blocked . | . . . . . . . . . . . . . . . . . . . . . . . . . . . Robot Schematics Acquired 4 | . . . . . . 2 . . . . . . . . . . . . . . 2 . . . . . Robots Built 6 | . . . . . . . 3 . 3 . . . . . . . . . . . . . . . . . Authchips . | . . . . . . . . . . . . . . . . . . . . . . . . . . . Time 223 | . . . . . . . 67 . 156 . . . . . . . . . . . . . . . . . Total Robot Build Rating 19 | . . . . . . . 12 . 7 . . . . . . . . . . . . . . . . . Part Schematics Acquired 23 | . . . 1 . . 7 . . . . 6 3 . . . 3 . . . . 1 . . . 2 . Parts Built 7 | . . . . . . . 2 . . . . . . . . 5 . . . . . . . . . . Authchips 1 | . . . . . . . 1 . . . . . . . . . . . . . . . . . . . Time 199 | . . . . . . . 36 . . . . . . . . 163 . . . . . . . . . . Total Part Build Rating 44 | . . . . . . . 6 . . . . . . . . 38 . . . . . . . . . . Parts Repaired 20 | . . . 1 . . . . . . . 2 5 . . . 2 . . . . 7 . . 2 1 . Time 710 | . . . 26 . . . . . . . 41 202 . . . 88 . . . . 269 . . 72 12 . Parts Recycled . | . . . . . . . . . . . . . . . . . . . . . . . . . . . Recycled Matter . | . . . . . . . . . . . . . . . . . . . . . . . . . . . Retrieved Matter . | . . . . . . . . . . . . . . . . . . . . . . . . . . . Retrieved Components 9 | . 9 . . . . . . . . . . . . . . . . . . . . . . . . . Parts Scanalyzed 8 | . . . 1 . . . . . . . 6 . . . . . . . . . 1 . . . . . Part Schematics Acquired 8 | . . . 1 . . . . . . . 6 . . . . . . . . . 1 . . . . . Parts Damaged 1 | . . . . . . . . . . . 1 . . . . . . . . . . . . . . . Bothacking | -11 -10 -10 -9 -9 -9 -9 -7 -7 -7 -7 -6 -6 -6 -6 -6 -5 -5 -5 -5 -4 -4 -4 -4 -3 -3 -3 ------------ Run | Yrd Mat Min Mat Sto Gar Rec Fac Gar Fac Gar Fac Ext Cet Arc Hub Fac Upp Upp War Pro Fac Upp Upp Res Tes Gar Used RIF Installer 3 | . . . . . 1 . . 1 . 1 . . . . . . . . . . . . . . . . Hotswap 1 | . . . . . . . . . . 1 . . . . . . . . . . . . . . . . Patrol Navigation 1 | . . . . . . . . 1 . . . . . . . . . . . . . . . . . . Robots Hacked 44 | . . . 1 . . . 2 2 1 5 9 3 . 1 1 5 2 1 . . 3 2 . 1 2 3 Non-combat 5 | . . . 1 . . . 2 . 1 . 1 . . . . . . . . . . . . . . . Combat 39 | . . . . . . . . 2 . 5 8 3 . 1 1 5 2 1 . . 3 2 . 1 2 3 Robot Hacks Applied 15 | . . . 1 . . . 3 2 1 5 3 . . . . . . . . . . . . . . . parse_system 2 | . . . 1 . . . 1 . . . . . . . . . . . . . . . . . . . no_distress 1 | . . . . . . . 1 . . . . . . . . . . . . . . . . . . . start_evac 1 | . . . . . . . . . . . 1 . . . . . . . . . . . . . . . ignore_repairs 1 | . . . . . . . 1 . . . . . . . . . . . . . . . . . . . purge_threat 1 | . . . . . . . . . . . 1 . . . . . . . . . . . . . . . disable_weapons 2 | . . . . . . . . . . 2 . . . . . . . . . . . . . . . . reboot_system 1 | . . . . . . . . . . 1 . . . . . . . . . . . . . . . . formatsys_low 1 | . . . . . . . . . 1 . . . . . . . . . . . . . . . . . formatsys_high 5 | . . . . . . . . 2 . 2 1 . . . . . . . . . . . . . . . Relay Couplers Released 22 | . . . . . 4 . . 4 . 8 3 . . . . . . . . . . . . . . 3 Machine Destruction 19 | . . . . . 4 . . 4 . 8 . . . . . . . . . . . . . . . 3 Programmers 3 | . . . . . . . . . . . 3 . . . . . . . . . . . . . . . Attached 6 | . . . . . . . 1 2 . 2 . . . . . . . . . . . . . . . 1 Fabnet Peak Effective % 13 | . . . . . . . . . . . 12 12 12 12 12 13 13 13 13 12 12 12 12 6 6 6 Autooverrided 31 | . . . . . . . . . . . 7 3 . 1 1 5 2 1 . . 3 2 . 1 2 3 Robots Rewired 18 | . . . . . . . . . . . . 18 . . . . . . . . . . . . . . Allies Hacked . | . . . . . . . . . . . . . . . . . . . . . . . . . . . Hacks Repelled . | . . . . . . . . . . . . . . . . . . . . . . . . . . . Allies | -11 -10 -10 -9 -9 -9 -9 -7 -7 -7 -7 -6 -6 -6 -6 -6 -5 -5 -5 -5 -4 -4 -4 -4 -3 -3 -3 -------- Run | Yrd Mat Min Mat Sto Gar Rec Fac Gar Fac Gar Fac Ext Cet Arc Hub Fac Upp Upp War Pro Fac Upp Upp Res Tes Gar Total Allies 81 | . . 4 . . 2 . 4 2 4 2 9 26 5 1 1 6 2 1 . . 3 2 . 1 3 3 Largest Group 16 | . . 4 4 . 2 2 5 5 3 4 2 16 14 14 12 1 1 1 . . 1 1 . 1 1 1 Highest-Rated Group 883 | . . 71 71 . 64 64 155 151 62 68 77 606 883 883 694 47 54 12 . . 58 58 . 82 49 30 Highest-Rated Ally 159 | . . 31 31 . 39 39 39 39 24 32 54 159 159 159 96 47 54 12 . . 58 58 . 82 49 30 Total Orders 18 | . . . . 4 . . 2 . 2 2 1 . . 5 2 . . . . . . . . . . . STAY 3 | . . . . . . . 1 . . . . . . . 2 . . . . . . . . . . . ROAM 1 | . . . . . . . . . . . . . . 1 . . . . . . . . . . . . FOLLOW 6 | . . . . . . . 1 . . 1 . . . 4 . . . . . . . . . . . . AID 3 | . . . . . . . . . 2 1 . . . . . . . . . . . . . . . . EXPLORE 5 | . . . . 4 . . . . . . 1 . . . . . . . . . . . . . . . Ally Attacks 558 | . . 9 79 . 3 5 40 14 3 12 29 141 54 37 79 13 9 2 . . 8 4 . 3 4 10 Total Damage 11852 | . . 68 852 . 68 152 806 366 102 215 722 2869 1316 1093 2218 419 120 17 . . 44 139 . 16 111 139 Kills 86 | . . 2 13 . 1 2 9 5 1 1 5 24 7 4 9 1 . . . . . 1 . . . 1 Allies Corrupted 6 | . . . . . . . . 2 . . . . . . 4 . . . . . . . . . . . Allies Melted . | . . . . . . . . . . . . . . . . . . . . . . . . . . . Intel | -11 -10 -10 -9 -9 -9 -9 -7 -7 -7 -7 -6 -6 -6 -6 -6 -5 -5 -5 -5 -4 -4 -4 -4 -3 -3 -3 ------- Run | Yrd Mat Min Mat Sto Gar Rec Fac Gar Fac Gar Fac Ext Cet Arc Hub Fac Upp Upp War Pro Fac Upp Upp Res Tes Gar Active Infowar (turns) 7364 | 15 542 . 845 126 125 329 529 150 560 73 93 776 270 474 237 1255 205 79 162 153 366 . . . . . Terrain 1115 | . . . 845 14 . 256 . . . . . . . . . . . . . . . . . . . . Seismic 2600 | 15 542 . 151 126 125 329 529 150 560 73 . . . . . . . . . . . . . . . . ECM 4070 | . . . . . . . . . . . 93 776 270 474 237 1255 205 79 162 153 366 . . . . . Robot Analysis Total 19 | . 3 . 4 1 . 1 . . . . 1 3 . . . 1 . . . . 5 . . . . . Derelict Logs Recovered 5 | . . 1 . . . . . . . . . . . . . . 2 . . 2 . . . . . . Drone Launches 25 | . . . . 17 . . . . . . 8 . . . . . . . . . . . . . . . Drone Recoveries 3 | . . . . 3 . . . . . . . . . . . . . . . . . . . . . . Exploration | -11 -10 -10 -9 -9 -9 -9 -7 -7 -7 -7 -6 -6 -6 -6 -6 -5 -5 -5 -5 -4 -4 -4 -4 -3 -3 -3 ------------- Run | Yrd Mat Min Mat Sto Gar Rec Fac Gar Fac Gar Fac Ext Cet Arc Hub Fac Upp Upp War Pro Fac Upp Upp Res Tes Gar Turns Passed 12778 | 99 691 187 859 126 125 391 754 150 560 398 2061 920 270 474 237 1262 205 79 162 153 1141 166 13 670 383 242 Spaces Moved 15014 | 47 613 254 774 106 146 596 930 192 682 374 2855 722 270 457 276 1531 305 137 277 274 1206 273 27 883 627 180 Core 72 | 9 52 . . . . . 1 . . 5 . . . . . . . . . . . . . . . 5 Treads 164 | 38 126 . . . . . . . . . . . . . . . . . . . . . . . . . Legs 165 | . . . 165 . . . . . . . . . . . . . . . . . . . . . . . Wheels . | . . . . . . . . . . . . . . . . . . . . . . . . . . . Hover 14163 | . 143 254 609 106 146 596 929 192 682 369 2697 722 270 457 276 1531 305 137 277 274 1206 273 27 883 627 175 Flight 450 | . 292 . . . . . . . . . 158 . . . . . . . . . . . . . . . Fastest Speed 29 | 50 37 56 56 56 56 56 48 48 48 48 29 58 58 58 58 48 53 55 55 55 34 48 48 45 45 46 Average Speed 56 | 149 76 56 69 74 56 59 50 50 64 50 54 59 58 58 58 52 59 55 55 55 48 60 48 47 46 56 Slowest Speed 240 | 160 240 56 190 120 56 60 150 52 116 120 165 126 58 58 114 114 114 55 55 55 104 100 48 100 50 190 Overloaded Moves . | . . . . . . . . . . . . . . . . . . . . . . . . . . . Propulsion Burnouts . | . . . . . . . . . . . . . . . . . . . . . . . . . . . Robots Hopped 11 | . 7 . . . . . . . . . 4 . . . . . . . . . . . . . . . Potential Cave-ins . | . . . . . . . . . . . . . . . . . . . . . . . . . . . Cave-ins Triggered . | . . . . . . . . . . . . . . . . . . . . . . . . . . . Exploration Rate (%) 45 | 4 89 50 70 30 40 94 26 39 12 43 64 76 78 98 24 42 45 31 19 57 38 51 4 27 59 25 Regions Visited 26 Branch Regions 14 Pre-discovered Areas 8 | . 1 . . . . 5 . . . . . . . . . . 1 . . 1 . . . . . . Known Exits Taken 11 | . . . 1 1 . . 1 . 1 . 1 1 . . . 1 . . . 1 1 . . 1 1 . Unknown Exits Taken 12 | 1 1 1 . . . 1 . . . . . . 1 1 1 . 1 1 1 . . 1 1 . . . Scrap Searched 6 | . . 2 . . . . . . . . . . . . . . . . . 3 . 1 . . . . Spaces Dug 155 | . 2 . 8 2 . 3 3 . 5 14 34 3 . . 1 18 7 1 4 . 11 . . 29 5 5 Terrain Destroyed 490 | . 2 . 8 2 . 3 11 30 8 35 126 8 . . 1 102 7 1 4 . 57 . . 44 10 31 Melee 155 | . 2 . 8 2 . 3 3 . 5 14 34 3 . . 1 18 7 1 4 . 11 . . 29 5 5 Projectile 56 | . . . . . . . . . 3 . 13 5 . . . 17 . . . . 9 . . 1 5 3 AOE 278 | . . . . . . . 8 30 . 21 79 . . . . 67 . . . . 36 . . 14 . 23 Terrain Rammed . | . . . . . . . . . . . . . . . . . . . . . . . . . . . Walls Destroyed . | . . . . . . . . . . . . . . . . . . . . . . . . . . . Machines Disabled . | . . . . . . . . . . . . . . . . . . . . . . . . . . . Actions | -11 -10 -10 -9 -9 -9 -9 -7 -7 -7 -7 -6 -6 -6 -6 -6 -5 -5 -5 -5 -4 -4 -4 -4 -3 -3 -3 --------- Run | Yrd Mat Min Mat Sto Gar Rec Fac Gar Fac Gar Fac Ext Cet Arc Hub Fac Upp Upp War Pro Fac Upp Upp Res Tes Gar Total 18146 | 60 733 291 946 150 167 619 1169 223 772 508 3192 1115 381 633 351 1880 314 138 280 275 1625 273 26 1050 692 283 Wait 1728 | . 43 32 41 28 8 10 161 7 51 50 108 210 105 144 69 246 . . . 1 269 . . 86 18 41 Move 14971 | 46 598 253 773 106 145 595 930 191 682 373 2846 721 269 456 276 1530 304 136 276 273 1205 272 26 882 627 180 Hop 11 | . 7 . . . . . . . . . 4 . . . . . . . . . . . . . . . Pick Up 85 | 1 7 1 4 . 1 . 3 . 4 . 23 4 . 3 . 8 . . . . 17 . . 3 4 2 Fast Attach 128 | 7 9 . 13 1 . 3 12 2 4 5 20 7 1 . 1 4 . . . . 14 . . 9 6 10 Attach 72 | . 5 1 1 1 1 1 4 . . . 16 . . . 1 10 1 1 . 1 11 1 . 4 3 9 Detach 32 | . 1 . 2 1 . 2 3 . . . 11 . . . 2 . . . . . 2 . . 5 1 2 Swap 133 | . 4 . 14 . . . 12 4 6 5 19 8 4 5 . 11 1 . . . 25 . . 6 5 4 Drop 121 | . 9 . 17 2 . . 14 1 7 2 20 3 2 3 1 6 . . . . 11 . . 5 13 5 Fire 356 | 6 45 . 55 . . . 12 3 9 8 61 33 . . . 35 . . . . 58 . . 12 7 12 Melee 341 | . 4 4 26 2 12 8 17 11 8 44 47 21 . 22 1 30 8 1 4 . 13 . . 38 8 12 Ram 7 | . . . . . . . 1 . . 6 . . . . . . . . . . . . . . . . Kick . | . . . . . . . . . . . . . . . . . . . . . . . . . . . Crush 1 | . 1 . . . . . . . . . . . . . . . . . . . . . . . . . Escape Stasis 44 | . . . . . . . . . . 12 13 13 . . . . . . . . . . . . . 6 Rewire 104 | . . . . 2 . . . 2 1 3 1 95 . . . . . . . . . . . . . . Trap 2 | . . . . . . . . 2 . . . . . . . . . . . . . . . . . . Miscellaneous 10 | . . . . 7 . . . . . . 3 . . . . . . . . . . . . . . . Route ------- -11/Scrapyard -10/Materials (discovered 5 exits: *Mat x3 / [*Min x2]) -10/Mines -9/Materials (discovered 4 exits: [*Mat] / *Min / *Sto x2) -9/Storage -9/Garrison -9/Recycling -7/Factory (discovered 7 exits: *Fac x4 / Low x2 / Gar) -7/Garrison (discovered 3 exits: *Fac x3) -7/Factory -7/Garrison (discovered 2 exits: *Fac x2) -6/Factory (discovered 7 exits: *Fac x3 / *Low x2 / *Ext x2) -6/Extension (discovered 2 exits: *Fac / *Cet) -6/Cetus -6/Archives (discovered 3 exits: *Fac / *Hub x2) -6/Hub_04(d) -5/Factory (discovered 3 exits: *Fac / *Upp x2) -5/Upper Caves -5/Upper Caves -5/Warlord -4/Proximity Caves -4/Factory (discovered 5 exits: *Res x2 / *Upp x2 / Arm) -4/Upper Caves -4/Upper Caves -3/Research (discovered 2 exits: *Tes x2) -3/Testing (discovered 2 exits: *Res / Gar) -3/Garrison History --------- Turn | Location | Event 12 | -11/Scrapyard | Discovered new exit (range 16) 100 | -11/Scrapyard | Entered Materials 266 | -10/Materials | Discovered new exit (range 15) 314 | -10/Materials | Build established: Mutant 478 | -10/Materials | Lost 5 parts (1p2n2w) 576 | -10/Materials | Discovered new exit (range 7) 585 | -10/Materials | Discovered new exit (range 13) 600 | -10/Materials | Discovered new exit (range 10) 723 | -10/Materials | Discovered new exit (range 6) 791 | -10/Materials | Entered Mines 798 | -10/Mines | Received a Rocket Launcher from a helpful Derelict 815 | -10/Mines | Assisted by bots powering up and referring to "LRC-V3" 849 | -10/Mines | Discovered new exit (range 12) 863 | -10/Mines | Learned Materials stockpile data 933 | -10/Mines | Received a Mining Laser from a helpful Derelict 978 | -10/Mines | Entered Materials 978 | -9/Materials | Accompanied by 4 allies 978 | -9/Materials | Evolved 2 slots: Utility x2 1035 | -9/Materials | Repaired Hover Unit 1199 | -9/Materials | Discovered new exit (range 9) 1343 | -9/Materials | Build established: Scavenger-Mutant 1543 | -9/Materials | Discovered new exit (range 9) 1563 | -9/Materials | Discovered new exit (range 3) 1650 | -9/Materials | Build established: Mutant 1780 | -9/Materials | Central database locked down 1780 | -9/Materials | Identified exit to Mines 1780 | -9/Materials | Identified exit to Storage 1837 | -9/Materials | Entered Storage 1951 | -9/Storage | Core integrity fell below 50% 1963 | -9/Storage | Identified exit to Garrison 1963 | -9/Storage | Entered Garrison 1973 | -9/Garrison | Installed Relay Interface Framework 1987 | -9/Garrison | Lost 11 allies 1990 | -9/Garrison | Lost 4 parts (1p2n1w) 1998 | -9/Garrison | Garrison Relay disabled 2053 | -9/Garrison | Triggered checkpoint 2053 | -9/Garrison | Triggered checkpoint 2065 | -9/Garrison | Discovered new exit (range 13) 2074 | -9/Garrison | Core integrity fell below 20% 2074 | -9/Garrison | Rescued a captive Derelict 2074 | -9/Garrison | Rescued a captive Derelict 2088 | -9/Garrison | Entered Recycling 2088 | -9/Recycling | Accompanied by 2 allies 2121 | -9/Recycling | Scanned before Scraplab entrance 2449 | -9/Recycling | Discovered new exit (range 6) 2479 | -9/Recycling | Entered Factory 2479 | -7/Factory | Accompanied by 2 allies 2479 | -7/Factory | Evolved 4 slots: Propulsion x2, Utility x2 2907 | -7/Factory | Identified exit to Factory 2907 | -7/Factory | Identified exit to Lower Caves 2994 | -7/Factory | Fabricated L-41 Fighter? 3054 | -7/Factory | Fabricated Airjet (x2) 3155 | -7/Factory | Cargo convoy interrupted 3204 | -7/Factory | Identified exit to Garrison 3233 | -7/Factory | Entered Garrison 3233 | -7/Garrison | Accompanied by 5 allies 3259 | -7/Garrison | Discovered new exit (range 66) 3259 | -7/Garrison | Discovered new exit (range 81) 3259 | -7/Garrison | Discovered new exit (range 29) 3261 | -7/Garrison | Build established: Hacker-Mutant 3291 | -7/Garrison | Garrison Relay disabled 3325 | -7/Garrison | Triggered checkpoint 3329 | -7/Garrison | Lost 5 allies 3331 | -7/Garrison | Triggered checkpoint 3356 | -7/Garrison | Expanded RIF knowledge: Patrol Navigation 3383 | -7/Garrison | Entered Factory 3429 | -7/Factory | Fabricated M-13 Machinist? 3757 | -7/Factory | Fabricated X-57 Shotgunner? 3929 | -7/Factory | Identified exit to Garrison 3943 | -7/Factory | Entered Garrison 3943 | -7/Garrison | Accompanied by 3 allies 3969 | -7/Garrison | Triggered checkpoint 4009 | -7/Garrison | Triggered checkpoint 4014 | -7/Garrison | Garrison Relay disabled 4080 | -7/Garrison | Discovered exit to Factory (range 8) 4109 | -7/Garrison | Triggered checkpoint 4169 | -7/Garrison | Triggered checkpoint 4210 | -7/Garrison | Discovered exit to Factory (range 13) 4217 | -7/Garrison | Triggered checkpoint 4222 | -7/Garrison | Expanded RIF knowledge: Hotswap 4238 | -7/Garrison | Garrison Relay disabled 4277 | -7/Garrison | P-60 Hacker assimilated allied Guardian 4b 4300 | -7/Garrison | Core integrity fell below 50% 4312 | -7/Garrison | Core integrity fell below 20% 4341 | -7/Garrison | Entered Factory 4341 | -6/Factory | Evolved 2 slots: Utility x2 4346 | -6/Factory | Lost 8 parts (1p4n1u2w) 4420 | -6/Factory | Discovered new exit (range 14) 4670 | -6/Factory | Discovered new exit (range 13) 4680 | -6/Factory | Identified exit to Lower Caves 4680 | -6/Factory | Identified exit to Extension 5153 | -6/Factory | Lost 3 allies 5219 | -6/Factory | Repaired Gravmag Array 5266 | -6/Factory | Repaired Gravmag Array 5755 | -6/Factory | Garrison activated, responded to threat 6039 | -6/Factory | Discovered new exit (range 14) 6133 | -6/Factory | Discovered new exit (range 5) 6183 | -6/Factory | Discovered new exit (range 10) 6229 | -6/Factory | Core integrity fell below 50% 6402 | -6/Factory | Entered Extension 6497 | -6/Extension | Hacking Suite fried by hacking feedback 6554 | -6/Extension | Identified exit to Cetus 6671 | -6/Extension | Rescued a captive Derelict 6713 | -6/Extension | Repaired Lgt. Nuclear Core 6765 | -6/Extension | Repaired Imp. Gravmag System 6804 | -6/Extension | Repaired Imp. Utility Shielding 6832 | -6/Extension | Repaired ECM Suite 6883 | -6/Extension | Repaired Gravmag Array 6894 | -6/Extension | Rescued A7 6905 | -6/Extension | Rescued a captive Derelict 6923 | -6/Extension | Rescued a captive Derelict 6930 | -6/Extension | Spotted B-75 Beast 6931 | -6/Extension | Spotted B-75 Beast 6948 | -6/Extension | Allies destroyed B-75 Beast 6948 | -6/Extension | Allies destroyed B-75 Beast 6969 | -6/Extension | Rescued a captive Derelict 7099 | -6/Extension | Rescued a captive Derelict 7135 | -6/Extension | Rescued a captive Derelict 7235 | -6/Extension | Lost 5 allies 7283 | -6/Extension | Discovered new exit (range 10) 7322 | -6/Extension | Disrupted transfer network 7322 | -6/Extension | Entered Cetus 7322 | -6/Cetus | Accompanied by 12 allies (A7) 7327 | -6/Cetus | Acquired a Cetus Manufacturing Module code from A7 7335 | -6/Cetus | Build established: Commander-Mutant 7338 | -6/Cetus | Spotted Cetus Guard 7338 | -6/Cetus | Spotted Cetus Guard 7348 | -6/Cetus | Spotted Cetus Guard 7349 | -6/Cetus | Allies destroyed Cetus Guard 7349 | -6/Cetus | Spotted Cetus Guard 7353 | -6/Cetus | Allies destroyed Cetus Guard 7359 | -6/Cetus | Allies destroyed Cetus Guard 7371 | -6/Cetus | Allies destroyed Cetus Guard 7392 | -6/Cetus | Started Cetus Manufacturing Module 7417 | -6/Cetus | Manufactured an Enhanced Grunt 7423 | -6/Cetus | Lost 3 allies 7442 | -6/Cetus | Manufactured an Enhanced Grunt 7445 | -6/Cetus | Escorted A7 to Cetus Mainframe 7467 | -6/Cetus | Manufactured an Enhanced Grunt 7492 | -6/Cetus | Manufactured an Enhanced Grunt 7517 | -6/Cetus | Manufactured an Enhanced Grunt 7539 | -6/Cetus | Discovered new exit (range 15) 7592 | -6/Cetus | Entered Archives 7592 | -6/Archives | Accompanied by 14 allies (A7) 7597 | -6/Archives | Received a hacking code to weaken MAIN.C 7629 | -6/Archives | Discovered new exit (range 15) 7645 | -6/Archives | Discovered new exit (range 14) 7730 | -6/Archives | Discovered new exit (range 15) 7852 | -6/Archives | Unable to access archive contents 7857 | -6/Archives | Unable to access archive contents 7863 | -6/Archives | Unable to access archive contents 7869 | -6/Archives | Unable to access archive contents 8066 | -6/Archives | Entered Hub_04(d) 8066 | -6/Hub_04(d) | Accompanied by 12 allies 8165 | -6/Hub_04(d) | Discovered new exit (range 3) 8271 | -6/Hub_04(d) | Network Hub disabled 8293 | -6/Hub_04(d) | Spotted Lightning 8299 | -6/Hub_04(d) | Found Prototype Energy Cannon 8299 | -6/Hub_04(d) | Identified EMDS 8303 | -6/Hub_04(d) | Entered Factory 8303 | -5/Factory | Accompanied by 1 ally 8303 | -5/Factory | Evolved 2 slots: Propulsion x1, Utility x1 8330 | -5/Factory | Lost 6 allies 8389 | -5/Factory | Fabricated Particle Reactor (x2) 8430 | -5/Factory | Spotted B-75 Beast 8478 | -5/Factory | Fabricated Lgt. Particle Reactor? 8529 | -5/Factory | P-70 Sage assimilated allied Administrator 6a 8575 | -5/Factory | Build established: Hacker-Mutant 8658 | -5/Factory | Lost 3 parts (1p1n1u) 8812 | -5/Factory | Repaired Lgt. Nuclear Core 8863 | -5/Factory | Repaired Imp. Gravmag System 9083 | -5/Factory | Fabricated Adv. Hacking Suite? 9219 | -5/Factory | Identified exit to Upper Caves 9409 | -5/Factory | Discovered new exit (range 13) 9565 | -5/Factory | Entered Upper Caves 9639 | -5/Upper Caves | Learned Factory security intel 9650 | -5/Upper Caves | Spotted B-75 Beast 9767 | -5/Upper Caves | Discovered new exit (range 6) 9769 | -5/Upper Caves | Attracted the attention of an 0b10 checkpoint 9770 | -5/Upper Caves | Entered another Upper Caves area 9831 | -5/Upper Caves | Discovered new exit (range 11) 9849 | -5/Upper Caves | Entered Warlord 9868 | -5/Warlord | System corruption cleaned by Quarantine Array 9907 | -5/Warlord | Discovered new exit (range 15) 9969 | -5/Warlord | Opened side exit 9978 | -5/Warlord | RIF detected upon attempting to enter Warlord's base 9978 | -5/Warlord | Attacked by Warlord forces 10011 | -5/Warlord | Entered Proximity Caves 10120 | -4/Proximity Caves | Identified exit to Factory 10149 | -4/Proximity Caves | Spotted B-86 Titan 10164 | -4/Proximity Caves | Entered Factory 10164 | -4/Factory | Evolved 2 slots: Propulsion x1, Utility x1 10222 | -4/Factory | Spotted B-86 Titan 10416 | -4/Factory | Discovered new exit (range 15) 10430 | -4/Factory | Discovered new exit (range 13) 10504 | -4/Factory | Repaired ECM Suite 10525 | -4/Factory | Repaired Imp. Utility Shielding 10557 | -4/Factory | Build established: Wizard-Mutant 10587 | -4/Factory | Lost 5 parts (1n2u2w) 10636 | -4/Factory | Repaired Centrium Medium Armor Plating 10851 | -4/Factory | Repaired KE Penetrator 10880 | -4/Factory | Repaired Antigrav System 10900 | -4/Factory | Repaired Imp. Utility Shielding 10994 | -4/Factory | Destroyed 9 combat bots 11050 | -4/Factory | Central database locked down 11190 | -4/Factory | Repaired Centrium Medium Armor Plating 11283 | -4/Factory | Identified exit to Upper Caves 11283 | -4/Factory | Identified exit to Armory 11305 | -4/Factory | Entered Upper Caves 11329 | -4/Upper Caves | Spotted B-86 Titan 11403 | -4/Upper Caves | Encountered a Warlord checkpoint 11463 | -4/Upper Caves | Attracted the attention of an 0b10 outpost 11470 | -4/Upper Caves | Discovered new exit (range 4) 11471 | -4/Upper Caves | Entered another Upper Caves area 11474 | -4/Upper Caves | Discovered new exit (range 10) 11481 | -4/Upper Caves | System corruption reached 10% 11484 | -4/Upper Caves | Entered Research 11484 | -3/Research | Evolved 2 slots: Utility x2 11553 | -3/Research | Repaired Centrium Medium Armor Plating 11879 | -3/Research | Repaired Antigrav System 12076 | -3/Research | Identified exit to Testing 12143 | -3/Research | Local machine network offline 12154 | -3/Research | Entered Testing 12158 | -3/Testing | Protovariant out of control (PD-0RDUMH5NVC) 12158 | -3/Testing | Unleashed a protovariant (PD-0RDUMH5NVC) 12180 | -3/Testing | Found Portable AFG 12206 | -3/Testing | Repaired Imp. Utility Shielding 12235 | -3/Testing | Found Prototype Launcher 12235 | -3/Testing | Identified Tactical Quantum Warhead 12239 | -3/Testing | Identified exit to Research 12298 | -3/Testing | Found Prototype Hackware 12298 | -3/Testing | Identified Exp. Hacking Suite 12523 | -3/Testing | Spotted Investigator 12537 | -3/Testing | Identified exit to Garrison 12537 | -3/Testing | Entered Garrison 12613 | -3/Garrison | Triggered checkpoint 12614 | -3/Garrison | Local machine network offline 12659 | -3/Garrison | Garrison Relay disabled 12691 | -3/Garrison | Triggered checkpoint 12692 | -3/Garrison | Spotted B-86 Titan 12727 | -3/Garrison | Core integrity fell below 50% 12743 | -3/Garrison | System corruption reached 10% 12760 | -3/Garrison | Triggered checkpoint 12777 | -3/Garrison | Core integrity fell below 20% 12779 | -3/Garrison | Destroyed by B-86 Titan with Hardcell Cannon Last Messages --------------- 12773_ Penetrated by Slug. 12773_ Slug penetrates Wall. 12774_ Dropped Portable AFG. 12774_ Imp. Hacking Suite destroyed. 12775_ Critical hit (Destroy). 12775_ Lgt. Antimatter Reactor destroyed. 12775_ S-43 Plague destroyed. 12775_ Adv. Hacking Suite destroyed. 12775_ Slug penetrates Wall. 12775_ Slug penetrates B-86 Titan. 12775_ Dropped Lrg. Storage Unit. 12776_ Portable AFG generating attraction field. 12776_ Knocked back. 12777_ Portable AFG generating attraction field. Garrison Door activated. 12777_ Acquired 30 matter. 12778_ Portable AFG generating attraction field. 12778_ Acquired Xenon Bombardment Thruster. 12779_ Imp. Hacking Suite destroyed. 12779_ Xenon Bombardment Thruster destroyed. Map ----- +----------------------------------------------------+ | ????????# ##???????????????????????????????????? | | ????????# "#???????????????????????????????????? | | ????????# ##???????????????????????????????????? | | ????????# #????????????????????????????????????? | | ???????## #????????????????????????????????????? | | ???????#" #????????????????????????????????????? | | ???????## #????????????????????????????????????? | | ????????# #????????????????????????????????????? | | ????????# #????????????????????????????????????? | | ????????# #????????????????????????????????????? | | ????????# #????????????????????????????????????? | | ????????# #????????????????????????????????????? | | ????????# #????????????????????????????????????? | | ????????# #????????????????????????????????????? | | ????????# #????????????????????????????????????? | | ######### ############?????????????????????????? | | # #?????????????????????????? | | #?????????????????????????? | | #### = ## ### #### #?????????????????????????? | | #??#= *## #?# #??# #?????????????????????????? | | #??##"### #?# ##?# #?????????????????????????? | | ????# #?# #?# # ## %#?????????????????????????? | | ????# #?# #### ## " #######???????????????????? | | ????# #?# # # ## " ## #???#???????????????? | | ????# ### %+## ## ##??????????????? | | ????# " %=%s@s ###????????????? | | ????####" %BB =%=&!] ; #?????????? | | ??????? " % BB%!%=/!]s% ######?????????? | | ??????#####;# # = [%=;# s ## #??????????????? | | ??????????#### ### #; s#?? #??????????????? | | ?????????????# # s " ? ?????????????? | | ?????????????##### hh ? #????????????? | | ?????????????????# % "?#????????????? | | ?????????????????# ] "??????????????? | | ?????????????????### ## ## #??????????????? | | ???????????????????# ## #? #??????????????? | | ??????????????????? ? ?????????????? | | ?????????????????? ?????????????? | | ?????????????????### g g ? ##?????????????? | | ???????????????????###### ###?????????????????? | | ????????????????????????? #???????????????????? | | ?????????????????????????####????????????????????? | | ?????????????????????????????????????????????????? | | ?????????????????????????????????????????????????? | | ?????????????????????????????????????????????????? | | ?????????????????????????????????????????????????? | | ?????????????????????????????????????????????????? | | ?????????????????????????????????????????????????? | | ?????????????????????????????????????????????????? | | ?????????????????????????????????????????????????? | +----------------------------------------------------+ Best States ------------- Heat Dissipation 65 Energy Generation 30 Energy Capacity 340 Matter Stores 300 Matter Capacity 300 Sight Range 16 Terrain Scan Range 14 Terrain Scan Density 10 ECM Strength 1 Power Amplification 40 Additional Mass Support 6 Armor Coverage 300 Resistance: TH 10 Resistance: EM 20 Core Shielding 20 Utility Shielding 66 Evasion (%) 63 Targeting Accuracy 8 Melee Accuracy 6 Recoil Reduction 2 Offensive Hacking 68 Defensive Hacking 24 Relay Coupler Types 2 Relay Coupler Value 46 Authchip Count 1 Item Schematics ----------------- Weight Redist. System | -9/Materials | Scanalyzed Rocket Launcher | -9/Recycling | Hacked Airjet | -9/Recycling | Hacked Imp. Terrain Scan Processor | -9/Recycling | Hacked Imp. Shield Generator | -9/Recycling | Hacked Imp. Targeting Computer | -9/Recycling | Hacked Ion Cannon | -9/Recycling | Hacked Cryofiber Web | -9/Recycling | Hacked Imp. Gravmag System | -6/Factory | Scanalyzed Imp. Utility Shielding | -6/Factory | Scanalyzed Mni. Assault Cannon | -6/Factory | Scanalyzed Remote Datajack | -6/Factory | Scanalyzed ECM Suite | -6/Factory | Scanalyzed Hacking Suite | -6/Factory | Scanalyzed Field Propulsion Array | -6/Extension | Hacked Imp. Transmission Jammer | -6/Extension | Hacked Imp. Antigrav System | -6/Extension | Hacked Imp. Phase Shifter | -5/Factory | Hacked Lgt. Particle Reactor | -5/Factory | Hacked Nova Cannon | -5/Factory | Hacked Centrium Medium Armor Plating | -4/Factory | Scanalyzed Enh. Nova Cannon | -3/Testing | Hacked Cmb. Linear Gravjet | -3/Testing | Hacked Robot Schematics ------------------ M-13 Machinist | -9/Recycling | Hacked L-31 Rogue | -9/Recycling | Hacked E-15 Imp | -4/Factory | Hacked M-36 Artificer | -4/Factory | Hacked Fabricated ------------ L-41 Fighter | x3 | -7/Factory | Preloaded Airjet | x2 | -7/Factory | Authchip M-13 Machinist | x1 | -7/Factory X-57 Shotgunner | x2 | -7/Factory | Preloaded Particle Reactor | x2 | -5/Factory | Preloaded Lgt. Particle Reactor | x2 | -5/Factory | Preloaded Adv. Hacking Suite | x1 | -5/Factory | Preloaded Repaired ---------- Hover Unit | 53% | -9/Materials Gravmag Array | 36% | -6/Factory Gravmag Array | 51% | -6/Factory Lgt. Nuclear Core | 4% | -6/Extension Imp. Gravmag System | 20% | -6/Extension Imp. Utility Shielding | 3% | -6/Extension ECM Suite | 70% | -6/Extension Gravmag Array | 74% | -6/Extension Lgt. Nuclear Core | 6% | -5/Factory Imp. Gravmag System | 24% | -5/Factory ECM Suite | 5% | -4/Factory Imp. Utility Shielding | 7% | -4/Factory Centrium Medium Armor Plating | 18% | -4/Factory KE Penetrator | 2% | -4/Factory Antigrav System | 32% | -4/Factory Imp. Utility Shielding | 60% | -4/Factory Centrium Medium Armor Plating | 37% | -4/Factory Centrium Medium Armor Plating | 30% | -3/Research Antigrav System | 12% | -3/Research Imp. Utility Shielding | 14% | -3/Testing Alien Tech Used ----------------- None Achievements -------------- None Challenges ------------ None Game ------ Seed ShockMasterPendant Manual? 0 Play Time 04:32:11 Cumulative 187.5 hours Start 2025.05.26 @ 21:01:54 End 2025.05.29 @ 17:39:58 Sessions 9 Manual Loads 0 Difficulty Rogue Special Mode None Game No. 100 Rogue 100 Adventurer 0 Explorer 0 Win Type - Total 12 Types 5/0/4/1/2/0/0/0/0/0 Lore% 77 Gallery% 64 Achievement% 64 Wizard Run 0 Options --------- Layout 1 ASCII 0 Keyboard 0 Movement Numpad Keybinds 0 Fullscreen 1 Font 24/Smallcaps Map View 50x35 Zoom Use 0% Tactical HUD 1 Map Filters NONE Filters NONE Steam 1 RUN: fcf53931-b2f8-4dc0-9252-0abba53534f3